bitfinex/quotes_BTCUSD_20220207
["timestamp","ask_amount","ask_price","bid_price","bid_amount"]
[1644256068886,0.25695027,44077.0,44070.0,0.05]
[1644256069087,0.02,44079.0,44071.0,0.00055401]
[1644256069891,0.10536265,44086.0,44076.0,0.05]
[1644256070090,0.13650366,44089.0,44072.0,0.8]
[1644256070091,0.023,44089.0,44086.0,0.44410059]
[1644256070290,0.110395,44092.0,44088.0,0.05]
[1644256070892,0.110395,44092.0,44085.0,0.32351]
[1644256071090,0.110395,44092.0,44089.0,0.32351]
[1644256071293,0.003,44094.0,44092.0,0.8]
[1644256071294,0.00055672,44094.0,44092.0,0.8]
[1644256071490,0.000448,44097.0,44095.0,0.65]
[1644256071689,0.000448,44097.0,44096.0,0.58884382]
[1644256072537,0.000448,44097.0,44096.0,0.430221]
[1644256072737,0.000448,44097.0,44096.0,0.37351]
[1644256072936,0.000448,44097.0,44096.0,0.32351]
[1644256074038,0.000448,44097.0,44091.0,0.0458]
[1644256074244,0.000448,44097.0,44092.0,0.32351]
[1644256074439,0.20166537,44094.0,44093.0,0.00121682]
[1644256074843,0.56012554,44094.0,44093.0,0.00121682]
[1644256075038,0.20166537,44094.0,44093.0,0.00121682]
[1644256075238,0.000448,44097.0,44093.0,0.00121682]
[1644256075239,0.00057681,44096.0,44093.0,0.00121682]
[1644256076088,0.06564877,44090.0,44084.0,0.320198]
[1644256076288,0.34244078,44095.0,44084.0,0.020198]
[1644256076490,0.05,44087.0,44084.0,0.020198]
[1644256076690,0.0458,44086.0,44084.0,0.020198]
[1644256076888,0.05,44088.0,44084.0,0.020198]
[1644256077089,0.1458,44088.0,44084.0,0.020198]
[1644256077290,0.24705646,44085.0,44084.0,0.020198]
[1644256077492,0.29285646,44085.0,44084.0,9.8e-05]
[1644256077690,0.29285646,44085.0,44058.0,0.086749]
[1644256077691,0.8,44084.0,44065.0,0.22719936]
[1644256077889,0.0458,44083.0,44075.0,0.01925182]
[1644256079090,0.25402914,44082.0,44075.0,0.01925182]
[1644256079390,0.0458,44081.0,44075.0,0.01925182]
[1644256079689,0.0458,44081.0,44075.0,0.06936697]
[1644256079940,0.0458,44081.0,44078.0,0.05]
[1644256079941,0.00057852,44080.0,44078.0,0.05]
[1644256080149,0.00057852,44080.0,44076.0,0.05]
[1644256080441,0.00057852,44080.0,44077.0,0.32351]
[1644256080643,0.00057852,44080.0,44076.0,0.32351]
[1644256081041,0.0201,44085.0,44075.0,0.01936697]
[1644256081242,0.00057852,44080.0,44075.0,0.01936697]
[1644256082042,0.00057852,44080.0,44075.0,0.00011515]
[1644256082243,0.32050311,44087.0,44075.0,0.00011515]
[1644256082244,0.31818937,44087.0,44075.0,0.00011515]
[1644256082443,0.0958,44086.0,44075.0,0.00011515]
[1644256082648,0.52,44087.0,44078.0,0.05]
[1644256082844,0.52,44087.0,44075.0,0.05011515]
[1644256082845,0.1,44087.0,44075.0,0.05011515]
[1644256083042,0.1,44087.0,44076.0,0.3]
[1644256083245,0.1,44087.0,44081.0,0.24075214]
[1644256083443,0.1,44087.0,44075.0,0.00421515]
[1644256083444,0.1,44087.0,44078.0,0.25717671]
[1644256083891,0.01828342,44089.0,44085.0,0.05]
[1644256084291,0.01828342,44089.0,44080.0,0.05]
[1644256084494,0.01828342,44089.0,44086.0,0.19065927]
[1644256084693,0.42,44093.0,44081.0,0.2476656]
[1644256084694,0.42,44093.0,44085.0,0.05]
[1644256084993,0.41961245,44093.0,44089.0,0.05]
[1644256085195,0.41961245,44093.0,44084.0,0.05]
[1644256085593,0.01934417,44094.0,44090.0,0.05]
[1644256085794,0.01934417,44094.0,44093.0,0.05]
[1644256086094,0.01934417,44094.0,44092.0,0.05]
[1644256086095,0.02079628,44094.0,44092.0,0.05]
[1644256086895,0.02079628,44094.0,44087.0,0.1]
[1644256086896,0.02079628,44094.0,44089.0,0.05]
[1644256087095,0.02079628,44094.0,44084.0,0.33794831]
[1644256087347,0.02079628,44094.0,44092.0,0.05]
[1644256087944,0.00057954,44095.0,44089.0,0.27395974]
[1644256088143,0.000448,44097.0,44089.0,0.50914129]
[1644256088545,0.000448,44097.0,44089.0,0.27395974]
[1644256088745,0.000448,44097.0,44084.0,0.02128752]
[1644256088944,0.0014336,44092.0,44084.0,0.02128752]
[1644256089145,0.0013336,44092.0,44084.0,0.02128752]
[1644256089343,0.0013336,44092.0,44084.0,0.07128752]
[1644256089543,0.00057954,44090.0,44084.0,0.27171351]
[1644256089744,0.00057954,44090.0,44084.0,0.02128752]
[1644256090149,0.00057954,44090.0,44082.0,0.01955373]
[1644256090150,0.07506379,44090.0,44082.0,0.01955373]
[1644256090544,0.33224106,44091.0,44082.0,0.01955373]
[1644256090944,0.24869253,44084.0,44082.0,0.01955373]
[1644256091192,0.00057954,44088.0,44082.0,0.01955373]
[1644256091793,0.0013336,44092.0,44082.0,0.01955373]
[1644256091994,0.00057954,44087.0,44082.0,0.01955373]
[1644256092193,0.00057954,44087.0,44079.0,0.02119744]
[1644256092194,0.00057954,44087.0,44078.0,0.3]
[1644256092392,0.00057954,44087.0,44075.0,0.00421515]
[1644256092593,0.00057954,44087.0,44076.0,0.32351]
[1644256092995,0.25247739,44091.0,44080.0,0.21305499]
[1644256093191,0.25247739,44091.0,44081.0,0.32351]
[1644256093192,0.00057954,44084.0,44081.0,0.32351]
[1644256093594,0.00057954,44084.0,44076.0,0.32351]
[1644256093595,0.00037954,44084.0,44076.0,0.32351]
[1644256093992,0.00037954,44084.0,44076.0,0.37351]
[1644256094192,0.00283596,44089.0,44075.0,0.07270719]
[1644256094393,0.20806896,44088.0,44075.0,0.24425034]
[1644256094594,0.00283596,44089.0,44075.0,0.56294385]
[1644256094845,0.00283596,44089.0,44076.0,0.32351]
[1644256095240,0.20892713,44084.0,44075.0,0.29425034]
[1644256095440,0.07491002,44077.0,44076.0,0.32351]
[1644256095644,0.07491002,44077.0,44075.0,0.02270719]
[1644256095645,0.20892713,44084.0,44075.0,0.02270719]
[1644256095841,0.00283596,44089.0,44075.0,0.02270719]
[1644256095842,0.0458,44083.0,44075.0,0.02270719]
[1644256096040,0.00283596,44089.0,44075.0,0.00421515]
[1644256096241,0.29530694,44080.0,44075.0,0.00421515]
[1644256096441,0.26576931,44076.0,44075.0,0.00421515]
[1644256096642,0.37725267,44076.0,44075.0,0.00421515]
[1644256096841,0.4696193,44076.0,44075.0,1.515e-05]
[1644256097041,0.4696193,44076.0,44071.0,0.01886139]
[1644256097241,0.5196193,44076.0,44071.0,0.01886139]
[1644256097440,0.35381701,44072.0,44071.0,0.01886139]
[1644256097842,0.45381701,44072.0,44071.0,0.01886139]
[1644256098148,0.45360665,44072.0,44069.0,0.00071086]
[1644256098443,0.0458,44071.0,44069.0,0.00071086]
[1644256098895,0.0458,44071.0,44062.0,0.01878417]
[1644256099195,0.07074782,44065.0,44062.0,0.01878417]
[1644256099398,0.28845669,44065.0,44062.0,0.01878417]
[1644256099997,0.20862796,44065.0,44062.0,0.01878417]
[1644256100198,0.20862796,44065.0,44059.0,0.32351]
[1644256100399,0.1458,44067.0,44061.0,0.00071096]
[1644256100805,0.0458,44067.0,44061.0,0.00071096]
[1644256101303,0.0458,44067.0,44056.0,0.05]
[1644256101503,0.0458,44067.0,44062.0,0.00071096]
[1644256101903,0.20174871,44065.0,44062.0,0.00071096]
[1644256102102,0.0458,44064.0,44062.0,0.00071096]
[1644256102541,0.0458,44064.0,44057.0,0.05]
[1644256102738,0.0458,44064.0,44061.0,0.00070645]
[1644256102938,0.0458,44064.0,44058.0,0.26827451]
[1644256102939,0.0458,44064.0,44058.0,0.26398096]
[1644256104141,0.04745918,44064.0,44058.0,0.26398096]
[1644256104743,0.04745918,44064.0,44063.0,0.05]
[1644256104945,0.04745918,44064.0,44063.0,0.37351]
[1644256104946,0.00165918,44064.0,44063.0,0.37351]
[1644256105347,0.00165918,44064.0,44063.0,0.32351]
[1644256106393,0.00165918,44064.0,44063.0,0.37351]
[1644256106595,0.00165918,44064.0,44063.0,0.42351]
[1644256106795,0.00058596,44070.0,44064.0,0.8]
[1644256106994,0.00058596,44070.0,44069.0,0.60492263]
[1644256107397,0.36049664,44077.0,44069.0,0.05]
[1644256107593,0.22169505,44076.0,44075.0,0.05]
[1644256108196,0.22169505,44076.0,44063.0,0.05]
[1644256108396,0.22169505,44076.0,44075.0,0.05]
[1644256109197,0.06770486,44069.0,44061.0,0.07054655]
[1644256109397,0.00165917,44064.0,44062.0,0.5563297]
[1644256110140,0.00058595,44070.0,44064.0,0.32351]
[1644256110338,0.00058595,44070.0,44069.0,0.05]
[1644256110838,0.00058595,44070.0,44064.0,0.05]
[1644256110839,0.23221514,44069.0,44064.0,0.05]
[1644256111637,0.28222822,44070.0,44064.0,0.05]
[1644256111638,0.00058544,44072.0,44064.0,0.05]
[1644256112238,0.02193723,44074.0,44064.0,0.05]
[1644256112439,0.00058544,44070.0,44065.0,0.32351]
[1644256112638,0.20255954,44070.0,44064.0,0.05]
[1644256113438,0.2019741,44070.0,44064.0,0.05]
[1644256113690,0.20255953,44070.0,44064.0,0.05]
[1644256114489,0.2019741,44070.0,44064.0,0.05]
[1644256114889,0.20255953,44070.0,44064.0,0.05]
[1644256115288,0.20255953,44070.0,44061.0,0.05]
[1644256115691,0.2019741,44070.0,44061.0,0.30400802]
[1644256116090,0.20255951,44070.0,44064.0,0.05]
[1644256116292,0.20255951,44070.0,44066.0,0.05]
[1644256116594,0.20255951,44070.0,44069.0,0.05]
[1644256116595,0.00058541,44070.0,44069.0,0.05]
[1644256116792,0.00058541,44070.0,44069.0,0.37351]
[1644256116989,0.02198106,44072.0,44070.0,0.32351]
[1644256117190,0.0225665,44072.0,44064.0,0.32351]
[1644256117640,0.0225665,44072.0,44063.0,0.05]
[1644256117843,0.0225665,44072.0,44068.0,0.1992885]
[1644256118343,0.00058544,44072.0,44068.0,0.1992885]
[1644256119144,0.00058544,44072.0,44066.0,0.05]
[1644256119342,0.31099269,44076.0,44066.0,0.05]
[1644256119544,0.25477273,44074.0,44067.0,0.3257008]
[1644256119741,0.25477273,44074.0,44067.0,0.05]
[1644256119941,0.00058544,44072.0,44064.0,0.05]
[1644256120142,0.00058544,44072.0,44067.0,0.22983201]
[1644256120543,0.25477273,44074.0,44067.0,0.22983201]
[1644256120742,0.00058544,44072.0,44067.0,0.22983201]
[1644256121104,0.25477273,44074.0,44061.0,0.31454128]
[1644256121105,0.07264072,44073.0,44061.0,0.31454128]
[1644256121303,0.06764072,44073.0,44057.0,0.5052]
[1644256121600,0.01904734,44059.0,44058.0,0.7118542]
[1644256122003,0.01904734,44059.0,44058.0,0.6618542]
[1644256122202,0.01904734,44059.0,44058.0,0.32351]
[1644256122602,0.08291437,44059.0,44058.0,0.32351]
[1644256122804,0.08291437,44059.0,44049.0,0.0156]
[1644256123103,0.01830928,44059.0,44052.0,0.32351]
[1644256123303,0.01830928,44059.0,44049.0,0.0156]
[1644256123505,0.01830928,44059.0,44056.0,0.21506782]
[1644256123904,0.01830928,44059.0,44049.0,0.3156]
[1644256124104,0.01830928,44059.0,44051.0,0.32351]
[1644256124504,0.01830928,44059.0,44052.0,0.05676]
[1644256124703,0.01830928,44059.0,44053.0,0.323469]
[1644256124941,0.01830928,44059.0,44054.0,0.2528936]
[1644256125540,0.01830928,44059.0,44054.0,0.25362315]
[1644256126141,0.06943758,44063.0,44054.0,0.00072955]
[1644256126342,0.01943758,44063.0,44056.0,0.056754]
[1644256126544,0.01943758,44063.0,44057.0,0.669269]
[1644256126741,0.01943758,44063.0,44058.0,0.05]
[1644256127046,0.01943758,44063.0,44059.0,0.369269]
[1644256127242,0.26863094,44067.0,44059.0,0.369269]
[1644256127441,0.26863094,44067.0,44057.0,0.25658443]
[1644256127442,0.07053177,44064.0,44057.0,0.25658443]
[1644256127642,0.07053177,44064.0,44058.0,0.323469]
[1644256127842,0.05,44062.0,44059.0,0.323469]
[1644256128142,0.07053177,44064.0,44058.0,0.00055375]
[1644256128443,0.21284796,44059.0,44058.0,0.00055375]
[1644256128692,0.21284796,44059.0,44058.0,0.32402275]
[1644256128889,0.21284796,44059.0,44058.0,0.323469]
[1644256129090,0.21284796,44059.0,44056.0,0.00055377]
[1644256129990,0.2746438,44065.0,44057.0,0.323469]
[1644256130398,0.29458691,44065.0,44057.0,0.323469]
[1644256130593,0.29458691,44065.0,44058.0,0.323469]
[1644256130793,0.01994311,44065.0,44059.0,0.323469]
[1644256130993,0.01994311,44065.0,44061.0,0.26348639]
[1644256131192,0.01994311,44065.0,44062.0,0.323469]
[1644256131791,0.01994311,44065.0,44061.0,0.00055372]
[1644256132196,0.05,44066.0,44061.0,0.00055372]
[1644256132197,0.05,44066.0,44064.0,0.25276613]
[1644256133452,0.05,44066.0,44062.0,0.0005537]
[1644256133852,0.05,44066.0,44058.0,0.323469]
[1644256134054,0.05,44066.0,44062.0,0.0005537]
[1644256134055,0.20939671,44063.0,44062.0,0.0005537]
[1644256134953,0.20939671,44063.0,44053.0,0.07515434]
[1644256135156,0.20939671,44063.0,44060.0,0.00072888]
[1644256135354,0.05,44066.0,44060.0,0.00072888]
[1644256136201,0.05,44066.0,44058.0,0.26454337]
[1644256136402,0.05,44066.0,44061.0,0.00072887]
[1644256137406,0.05,44066.0,44065.0,0.21216036]
[1644256137601,0.05,44066.0,44061.0,0.00072887]
[1644256138502,0.05,44066.0,44059.0,0.23114038]
[1644256138702,0.05,44066.0,44061.0,0.00072887]
[1644256138905,0.05,44066.0,44062.0,0.323469]
[1644256139102,0.05,44067.0,44061.0,0.00072887]
[1644256139402,0.05,44067.0,44063.0,0.21862308]
[1644256139602,0.05,44067.0,44062.0,0.323469]
[1644256140046,0.05,44067.0,44062.0,0.32419786]
[1644256140243,0.44275901,44073.0,44062.0,0.32419786]
[1644256140445,0.05,44067.0,44063.0,0.323469]
[1644256141345,0.05,44067.0,44063.0,0.318469]
[1644256142045,0.42327957,44072.0,44062.0,0.23635177]
[1644256142246,0.19182369,44066.0,44058.0,0.27536011]
[1644256142448,0.19172369,44066.0,44062.0,0.00072886]
[1644256142848,0.42327957,44072.0,44062.0,0.00072886]
[1644256143048,0.05,44066.0,44062.0,0.00072886]
[1644256143348,0.05,44066.0,44063.0,0.323376]
[1644256143794,0.05,44066.0,44063.0,0.298376]
[1644256143995,0.05,44066.0,44062.0,0.00072886]
[1644256144395,0.05,44066.0,44063.0,0.323397]
[1644256144596,0.23390085,44067.0,44063.0,0.32367015]
[1644256144795,0.04972685,44066.0,44063.0,0.323397]
[1644256145199,0.04972685,44066.0,44062.0,0.00072886]
[1644256146896,0.04972685,44066.0,44059.0,0.05702715]
[1644256147096,0.04972685,44066.0,44062.0,0.00072886]
[1644256147543,0.23390085,44067.0,44062.0,0.00072886]
[1644256147746,0.04972685,44066.0,44062.0,0.21734625]
[1644256147947,0.04972685,44069.0,44062.0,0.21734625]
[1644256148146,0.01889572,44071.0,44063.0,0.32367015]
[1644256148345,0.01992587,44071.0,44063.0,0.00027315]
[1644256148545,0.01992587,44071.0,44064.0,0.323397]
[1644256149046,0.01992587,44071.0,44063.0,0.00027315]
[1644256150448,0.01968961,44072.0,44065.0,0.056747]
[1644256151294,0.00058374,44074.0,44069.0,0.75]
[1644256151506,0.00058374,44074.0,44073.0,0.00027315]
[1644256151696,0.0001,44080.0,44073.0,0.36947015]
[1644256151895,0.0001,44080.0,44079.0,0.00027315]
[1644256152095,0.0001,44080.0,44079.0,0.36947015]
[1644256152294,0.0001,44080.0,44079.0,0.62167537]
[1644256152594,0.0001,44080.0,44079.0,0.72839937]
[1644256153795,0.0001,44080.0,44079.0,1.01681331]
[1644256154596,0.0001,44080.0,44079.0,0.96681331]
[1644256154851,0.0001,44080.0,44079.0,1.01681331]
[1644256155245,0.0001,44080.0,44079.0,0.91681331]
[1644256155644,0.36914978,44090.0,44079.0,0.91681331]
[1644256155845,0.36914978,44090.0,44083.0,0.056727]
[1644256156044,0.04972685,44090.0,44083.0,0.056727]
[1644256156247,0.04972685,44090.0,44086.0,0.00027315]
[1644256156446,0.02106436,44089.0,44086.0,0.00027315]
[1644256156647,0.02106436,44089.0,44081.0,0.00027315]
[1644256156846,0.02106436,44089.0,44080.0,0.159247]
[1644256157047,0.02106436,44089.0,44081.0,0.056729]
[1644256157446,0.02106436,44089.0,44080.0,0.0458]
[1644256158050,0.046374,44090.0,44081.0,0.35]
[1644256158247,0.046374,44089.0,44081.0,0.35]
[1644256158448,0.046374,44089.0,44088.0,0.02106436]
[1644256161100,0.01856113,44095.0,44089.0,0.056715]
[1644256161301,0.01856113,44095.0,44090.0,0.0458]
[1644256162345,0.01856113,44095.0,44090.0,0.06633675]
[1644256162541,0.01856113,44095.0,44090.0,0.06996275]
[1644256162940,0.01856113,44095.0,44090.0,0.0458]
[1644256162941,0.00058133,44095.0,44090.0,0.0458]
[1644256163142,0.00058133,44095.0,44090.0,0.049426]
[1644256163339,0.00058133,44095.0,44090.0,0.0458]
[1644256163540,0.00058133,44095.0,44094.0,0.003626]
[1644256163741,0.000448,44097.0,44094.0,0.377023]
[1644256163940,0.000448,44097.0,44094.0,0.373397]
[1644256164141,0.000448,44097.0,44095.0,0.323397]
[1644256164340,0.000448,44097.0,44096.0,0.23992021]
[1644256164542,0.000448,44097.0,44096.0,0.56331721]
[1644256164741,0.000448,44097.0,44096.0,0.56694321]
[1644256164742,0.010448,44097.0,44096.0,0.56694321]
[1644256164942,0.000448,44097.0,44096.0,0.56694321]
[1644256165744,0.000448,44097.0,44096.0,0.327023]
[1644256166392,0.000448,44097.0,44096.0,0.323397]
[1644256166898,0.0011,44100.0,44098.0,0.323397]
[1644256167094,0.0011,44100.0,44099.0,0.349426]
[1644256167393,0.0011,44100.0,44099.0,0.0458]
[1644256167792,0.0011,44100.0,44099.0,0.369197]
[1644256167992,0.00137412,44103.0,44101.0,0.27554026]
[1644256168192,0.00037412,44104.0,44103.0,0.45]
[1644256168397,0.00037412,44104.0,44103.0,0.777023]
[1644256168594,0.00037412,44104.0,44103.0,0.323397]
[1644256168795,0.00037412,44104.0,44103.0,0.0458]
[1644256169399,0.00037412,44104.0,44091.0,0.3]
[1644256169400,0.07177981,44104.0,44091.0,0.3]
[1644256169598,0.07177981,44104.0,44089.0,0.003626]
[1644256169599,0.046374,44092.0,44089.0,0.003626]
[1644256169861,0.046374,44092.0,44090.0,0.323397]
[1644256170050,0.046374,44092.0,44090.0,0.54704764]
[1644256170250,0.21092164,44100.0,44090.0,0.54704764]
[1644256170453,0.21092164,44100.0,44090.0,0.22365064]
[1644256170651,0.22853073,44097.0,44092.0,0.05]
[1644256170858,0.00037412,44104.0,44092.0,0.05]
[1644256171070,0.224,44110.0,44092.0,0.05]
[1644256171071,0.05,44108.0,44092.0,0.05]
[1644256171255,0.00058084,44101.0,44092.0,0.05]
[1644256171454,0.00058084,44101.0,44091.0,0.01909739]
[1644256171852,0.07192318,44097.0,44091.0,0.01909739]
[1644256172052,0.22507646,44096.0,44091.0,0.01909739]
[1644256172253,0.22507646,44096.0,44091.0,0.04041153]
[1644256172453,0.22507646,44096.0,44091.0,0.02131414]
[1644256174093,0.22507646,44096.0,44091.0,0.00131414]
[1644256175093,0.22507646,44096.0,44088.0,0.23523715]
[1644256175294,0.22507646,44096.0,44082.0,0.3]
[1644256175695,0.27087646,44096.0,44082.0,0.3]
[1644256176298,0.08618281,44093.0,44085.0,0.21498216]
[1644256176497,0.2250396,44094.0,44085.0,0.21498216]
[1644256176696,0.37087646,44096.0,44086.0,0.05]
[1644256176896,0.37087646,44096.0,44085.0,0.21498216]
[1644256177097,0.79087646,44096.0,44086.0,0.05]
[1644256177351,0.27087646,44096.0,44086.0,0.05]
[1644256177744,0.06738974,44093.0,44086.0,0.05]
[1644256178345,0.22507646,44096.0,44086.0,0.05]
[1644256178544,0.22507646,44096.0,44087.0,0.25264936]
[1644256178947,0.22507646,44096.0,44086.0,0.05]
[1644256179546,0.22507646,44096.0,44086.0,0.106718]
[1644256179746,0.02058449,44097.0,44086.0,0.106718]
[1644256180147,0.02058449,44097.0,44086.0,0.05]
[1644256180349,0.09004541,44100.0,44086.0,0.05]
[1644256180547,0.02075513,44099.0,44086.0,0.05]
[1644256180748,0.45808382,44097.0,44087.0,0.25025213]
[1644256181396,0.07156268,44093.0,44086.0,0.05]
[1644256181598,0.08612625,44093.0,44086.0,0.05]
[1644256181997,0.45808382,44097.0,44087.0,0.3]
[1644256181998,0.19180242,44097.0,44087.0,0.3]
[1644256182199,0.19180242,44097.0,44082.0,0.05]
[1644256182397,0.19180242,44097.0,44080.0,0.02024786]
[1644256182598,0.19180242,44097.0,44082.0,0.3]
[1644256182797,0.19180242,44097.0,44080.0,0.02024786]
[1644256182997,0.24418183,44088.0,44080.0,0.02024786]
[1644256183197,0.24418183,44088.0,44081.0,0.323152]
[1644256184102,0.3155114,44088.0,44080.0,0.02024786]
[1644256184298,0.3155114,44088.0,44081.0,0.18985918]
[1644256185347,0.3155114,44088.0,44079.0,0.056729]
[1644256185744,0.24418183,44088.0,44079.0,0.056729]
[1644256186844,0.24418183,44088.0,44080.0,0.323152]
[1644256187045,0.24418183,44088.0,44079.0,0.056729]
[1644256187444,0.24418183,44088.0,44078.0,0.00072911]
[1644256187643,0.24418183,44088.0,44080.0,0.056727]
[1644256188444,0.26597926,44088.0,44080.0,0.056727]
[1644256188697,0.35848574,44094.0,44091.0,0.28988127]
[1644256188897,0.20346011,44093.0,44091.0,0.28988127]
[1644256189498,0.20751982,44092.0,44091.0,0.28988127]
[1644256189897,0.30346011,44093.0,44091.0,0.28988127]
[1644256190198,0.20346011,44093.0,44091.0,0.28988127]
[1644256190397,0.30346011,44093.0,44091.0,0.28988127]
[1644256190800,0.08055201,44092.0,44091.0,0.28988127]
[1644256191000,0.34663242,44092.0,44091.0,0.28988127]
[1644256191204,0.08055201,44092.0,44091.0,0.28988127]
[1644256191407,0.12635201,44092.0,44091.0,0.28988127]
[1644256191602,0.13055201,44092.0,44091.0,0.28988127]
[1644256191804,0.8,44091.0,44087.0,0.02179743]
[1644256192002,0.8,44091.0,44087.0,9.743e-05]
[1644256192003,0.0458,44090.0,44087.0,9.743e-05]
[1644256192448,0.28799223,44089.0,44087.0,9.743e-05]
[1644256192647,0.0458,44088.0,44087.0,9.743e-05]
[1644256194452,0.08770612,44079.0,44078.0,0.0220938]
[1644256194747,0.27310686,44079.0,44078.0,0.0220938]
[1644256195146,0.27310686,44079.0,44078.0,0.0213654]
[1644256195747,0.34305645,44079.0,44078.0,0.0213654]
[1644256196202,0.49305645,44079.0,44078.0,0.0213654]
[1644256196601,0.44305645,44079.0,44076.0,0.0007284]
[1644256197401,0.49305645,44079.0,44069.0,0.02198817]
[1644256197601,0.49305645,44079.0,44075.0,0.00072841]
[1644256197801,0.26797604,44078.0,44075.0,0.00072841]
[1644256198000,0.31377604,44078.0,44075.0,0.00072841]
[1644256198402,0.41377604,44078.0,44075.0,0.00072841]
[1644256198603,0.41377604,44078.0,44069.0,0.02198817]
[1644256198803,0.05675505,44076.0,44074.0,0.00072842]
[1644256199005,0.0458,44075.0,44074.0,0.00072842]
[1644256199404,0.0958,44075.0,44074.0,0.00072842]
[1644256199851,0.0958,44075.0,44066.0,0.3]
[1644256200047,0.08253913,44068.0,44065.0,0.05]
[1644256200247,0.0958,44075.0,44065.0,0.02176187]
[1644256200248,0.242515,44067.0,44065.0,0.02176187]
[1644256201354,0.0458,44072.0,44065.0,0.26715291]
[1644256202348,0.25603949,44072.0,44065.0,0.26715291]
[1644256202548,0.0458,44072.0,44066.0,0.00072852]
[1644256203448,0.0458,44072.0,44065.0,0.24539104]
[1644256203698,0.0458,44072.0,44067.0,0.00072851]
[1644256204098,0.2874326,44075.0,44067.0,0.00072851]
[1644256204701,0.2416326,44075.0,44066.0,0.00059724]
[1644256204900,0.2416326,44075.0,44069.0,0.00072849]
[1644256205498,0.01887778,44076.0,44072.0,0.19479439]
[1644256205900,0.01887778,44076.0,44073.0,0.05]
[1644256206100,0.01887778,44076.0,44074.0,0.32908288]
[1644256206300,0.1169,44087.0,44076.0,0.8]
[1644256206500,0.6699536,44090.0,44082.0,0.26026396]
[1644256206698,0.21429264,44095.0,44087.0,0.25051489]
[1644256207360,0.2710244,44095.0,44087.0,0.25051489]
[1644256207747,0.48421428,44095.0,44087.0,0.25051489]
[1644256207946,0.58421428,44095.0,44081.0,0.0458]
[1644256208148,0.35359824,44088.0,44081.0,0.0458]
[1644256208350,0.05673791,44090.0,44081.0,0.0458]
[1644256208953,0.21199851,44090.0,44084.0,0.2593277]
[1644256209350,0.26199851,44090.0,44084.0,0.2593277]
[1644256209553,0.05,44090.0,44084.0,0.2593277]
[1644256209854,0.50818042,44092.0,44084.0,0.2593277]
[1644256209855,0.48543971,44092.0,44084.0,0.2593277]
[1644256210054,0.31516697,44091.0,44084.0,0.2593277]
[1644256210254,0.48543971,44092.0,44084.0,0.2593277]
[1644256210553,0.1,44091.0,44084.0,0.2593277]
[1644256210754,0.48543971,44092.0,44084.0,0.2593277]
[1644256210956,0.15,44092.0,44085.0,0.05]
[1644256211205,0.15,44092.0,44086.0,0.323152]
[1644256211406,0.05,44099.0,44089.0,0.05]
[1644256211407,0.15,44099.0,44089.0,0.05]
[1644256211604,0.0001,44100.0,44089.0,0.05]
[1644256211804,0.37154874,44098.0,44091.0,0.2485444]
[1644256212004,0.25351545,44099.0,44091.0,0.2485444]
[1644256212407,0.25351545,44099.0,44089.0,0.01935116]
[1644256212804,0.24351545,44099.0,44089.0,0.06935116]
[1644256213004,0.36787276,44099.0,44089.0,0.06935116]
[1644256213604,0.04,44099.0,44089.0,0.06935116]
[1644256213807,0.00058039,44101.0,44098.0,0.05]
[1644256214004,0.00058039,44101.0,44099.0,0.52420874]
[1644256214204,0.20584954,44112.0,44099.0,0.52420874]
[1644256214403,0.39855917,44112.0,44102.0,0.05]
[1644256214603,0.00070807,44108.0,44102.0,0.05]
[1644256215047,0.00070807,44108.0,44106.0,0.26578071]
[1644256215343,0.006,44112.0,44107.0,0.3]
[1644256215344,0.00512295,44111.0,44107.0,0.3]
[1644256215745,0.00512295,44111.0,44106.0,0.26578071]
[1644256215746,0.00017704,44109.0,44106.0,0.26578071]
[1644256215944,0.00017704,44109.0,44107.0,0.323152]
[1644256216143,0.00017704,44109.0,44106.0,0.26578071]
[1644256216345,0.00017704,44109.0,44107.0,0.01985612]
[1644256216749,0.00512295,44111.0,44108.0,0.05]
[1644256216947,0.00057869,44110.0,44109.0,0.0458]
[1644256217146,0.00057869,44110.0,44109.0,0.368952]
[1644256217549,0.00057869,44110.0,44109.0,0.62505362]
[1644256218046,0.00512295,44111.0,44109.0,0.62505362]
[1644256218047,0.00512295,44111.0,44110.0,0.323152]
[1644256218247,0.00657869,44112.0,44111.0,0.8]
[1644256218446,0.00679305,44112.0,44111.0,0.85]
[1644256218692,0.00679305,44112.0,44111.0,0.8958]
[1644256219093,0.00621436,44112.0,44111.0,0.8958]
[1644256219292,0.00621436,44112.0,44111.0,0.0958]
[1644256219496,0.01095311,44120.0,44111.0,0.3958]
[1644256219696,0.00128616,44117.0,44116.0,0.323152]
[1644256219896,0.00128616,44117.0,44116.0,0.368952]
[1644256220296,0.003,44134.0,44117.0,0.8]
[1644256220499,0.00384374,44140.0,44133.0,0.05]
[1644256220500,0.00627421,44139.0,44133.0,0.05]
[1644256220700,0.00127421,44139.0,44133.0,0.0458]
[1644256221300,0.0041,44150.0,44138.0,0.05]
[1644256221498,0.0041,44150.0,44145.0,0.323152]
[1644256221696,0.00127399,44154.0,44146.0,0.0308]
[1644256221697,0.00054658,44151.0,44146.0,0.0308]
[1644256221896,0.00054658,44151.0,44147.0,0.323152]
[1644256222095,0.00054658,44151.0,44148.0,0.0458]
[1644256222367,0.00054658,44151.0,44148.0,0.24934847]
[1644256222558,0.00027351,44151.0,44148.0,0.24934847]
[1644256222959,0.00027351,44151.0,44150.0,0.05]
[1644256223157,0.00027351,44151.0,44150.0,0.373152]
[1644256223362,0.00027351,44151.0,44150.0,0.673152]
[1644256223561,0.00154066,44176.0,44152.0,0.8]
[1644256223766,0.1054996,44182.0,44152.0,0.8]
[1644256223767,0.00038224,44181.0,44172.0,0.05]
[1644256223963,0.06135001,44194.0,44180.0,0.045]
[1644256223964,0.005,44194.0,44180.0,0.045]
[1644256224161,0.005,44194.0,44187.0,0.8]
[1644256224462,0.3943,44213.0,44187.0,0.8]
[1644256224463,0.0007752,44218.0,44191.0,0.00356116]
[1644256224664,2.34046709,44233.0,44214.0,0.05]
[1644256224868,2.34046709,44233.0,44205.0,0.25040434]
[1644256224869,23.77695813,44244.0,44226.0,0.05]
[1644256225162,23.77695813,44244.0,44243.0,0.05]
[1644256225163,19.6563578,44244.0,44243.0,0.05]